bitfinex-derivatives/quotes_SOLF0:USTF0_20241127
["timestamp","ask_amount","ask_price","bid_price","bid_amount"]
[1732725229049,9.8594578,240.85,240.8,2.0743]
[1732725229247,9.8594578,240.85,240.79,2.58]
[1732725229248,9.8594578,240.84,240.79,2.58]
[1732725229548,9.8594578,240.83,240.79,2.58]
[1732725229747,1.2178,240.89,240.79,2.58]
[1732725229951,9.88175744,240.88,240.79,2.58]
[1732725230143,9.88175744,240.87,240.79,2.58]
[1732725230343,9.88175744,240.86,240.79,2.58]
[1732725230547,9.88175744,240.85,240.79,2.58]
[1732725230752,1.2178,240.89,240.79,2.58]
[1732725231756,1.2178,240.89,240.83,2.0741]
[1732725232055,2.0733,240.94,240.81,9.93315719]
[1732725232254,1.26,240.95,240.85,2.074]
[1732725232649,9.90130412,240.94,240.81,9.93315719]
[1732725233351,2.0734,240.92,240.87,2.0737]
[1732725233752,9.92456823,240.91,240.87,2.0737]
[1732725233951,2.0734,240.92,240.87,2.0737]
[1732725234154,9.9245691,240.91,240.87,2.0737]
[1732725234456,9.9245691,240.9,240.87,2.0737]
[1732725234657,9.9245691,240.89,240.86,2.0739]
[1732725234851,9.9245691,240.88,240.86,2.0739]
[1732725235046,2.0735,240.91,240.86,2.0739]
[1732725235246,9.93658861,240.9,240.86,2.0739]
[1732725235453,9.93658861,240.89,240.86,2.0739]
[1732725235855,9.93658861,240.88,240.86,2.0739]
[1732725236056,9.93658861,240.87,240.86,2.0739]
[1732725236256,2.0735,240.91,240.86,2.0739]
[1732725236257,9.93658861,240.9,240.86,2.0739]
[1732725236954,9.93658861,240.9,240.89,2.0736]
[1732725237155,8.35728861,240.9,240.87,9.93315719]
[1732725237350,12.52935719,241.15,240.87,9.93315719]
[1732725237552,12.52935719,241.15,241.04,2.0723]
[1732725237754,12.52935719,241.15,240.99,9.93315719]
[1732725238157,12.52935719,241.15,241.05,2.0722]
[1732725238362,2.58,241.14,240.96,15.85403404]
[1732725238657,2.072,241.08,241.02,2.0724]
[1732725239255,2.0722,241.06,240.95,2.58]
[1732725239660,2.58,241.11,240.95,2.58]
[1732725239864,2.58,241.11,241.0,2.0727]
[1732725240061,2.58,241.11,240.95,2.58]
[1732725240363,2.58,241.11,240.89,2.58]
[1732725240364,15.85403404,241.09,240.89,2.58]
[1732725240563,0.62813854,241.08,240.88,15.85403404]
[1732725240765,15.85403404,241.05,240.87,2.58]
[1732725240967,2.0729,240.98,240.93,2.0733]
[1732725241166,5.1215,241.04,240.93,2.0733]
[1732725241363,5.1215,241.04,240.87,2.58]
[1732725241564,2.0727,241.0,240.94,2.0732]
[1732725241772,5.1215,241.04,240.88,15.85403404]
[1732725241976,2.5415,241.04,240.88,15.85403404]
[1732725242269,5.1215,241.04,240.88,15.85403404]
[1732725242571,5.1215,241.04,240.89,2.58]
[1732725242772,2.0727,241.0,240.94,2.0731]
[1732725243070,5.1215,241.04,240.89,2.58]
[1732725243467,2.0729,240.98,240.94,2.0732]
[1732725243667,5.1215,241.04,240.89,2.58]
[1732725244974,5.1215,241.04,240.93,2.0732]
[1732725245169,15.85403404,241.01,240.8,15.85403404]
[1732725245371,15.85403404,240.97,240.79,2.58]
[1732725245571,2.58,240.96,240.79,2.58]
[1732725245871,2.58,240.96,240.85,2.0739]
[1732725246067,2.58,240.96,240.79,2.58]
[1732725246274,2.58,240.97,240.84,15.85403404]
[1732725246974,4.653,240.97,240.84,15.85403404]
[1732725247171,2.58,241.0,240.85,2.58]
[1732725247364,4.6526,241.01,240.9,2.0735]
[1732725247564,2.58,241.03,240.85,3.881]
[1732725247969,2.0727,241.0,240.9,2.0735]
[1732725248169,2.58,241.03,240.88,15.85403404]
[1732725248569,2.0724,241.03,240.92,2.0733]
[1732725248772,2.0724,241.03,240.91,2.58]
[1732725249369,2.0724,241.03,240.97,2.0728]
[1732725249675,2.5415,241.04,240.91,2.58]
[1732725249877,2.5415,241.04,240.94,2.0732]
[1732725250081,2.0726,241.01,240.88,15.85403404]
[1732725250381,2.58,241.08,240.96,2.0729]
[1732725250569,9.22146232,241.07,240.92,15.85403404]
[1732725250773,2.58,241.09,240.92,15.85403404]
[1732725250969,9.22140357,241.08,240.92,15.85403404]
[1732725251273,2.478,241.11,240.96,15.85403404]
[1732725251479,9.21856308,241.1,240.97,2.58]
[1732725251777,2.478,241.11,240.97,2.58]
[1732725251968,2.478,241.11,241.03,2.0723]
[1732725252171,9.21841393,241.1,241.03,2.0723]
[1732725252368,9.21841393,241.1,240.97,2.58]
[1732725252369,4.5498,241.11,241.04,2.0722]
[1732725252675,2.478,241.11,240.91,2.58]
[1732725252970,2.478,241.11,240.85,5.4489]
[1732725252971,2.478,241.11,240.92,15.85403404]
[1732725253574,2.478,241.11,240.96,15.85403404]
[1732725253783,2.478,241.11,240.97,2.58]
[1732725254074,2.0719,241.1,240.97,2.58]
[1732725255079,2.0719,241.09,240.97,2.58]
[1732725256268,4.5498,241.11,240.97,2.58]
[1732725256474,2.478,241.11,240.97,2.58]
[1732725256673,2.0719,241.1,241.04,2.0722]
[1732725257281,2.0719,241.09,241.04,2.0722]
[1732725257680,2.478,241.11,240.86,0.0766]
[1732725257881,2.478,241.11,240.91,15.85403404]
[1732725258976,2.478,241.11,240.95,15.85403404]
[1732725259181,2.478,241.11,240.96,2.58]
[1732725259480,2.478,241.11,240.96,3.8189]
[1732725259676,2.072,241.08,240.96,3.8189]
[1732725259980,2.478,241.11,240.96,3.8189]
[1732725260176,2.0721,241.07,241.0,2.0727]
[1732725260376,2.478,241.11,240.96,3.8189]
[1732725260774,2.478,241.11,241.0,2.0726]
[1732725261280,9.23906296,241.1,241.0,2.0726]
[1732725261580,2.478,241.11,241.0,2.0726]
[1732725261581,2.0723,241.05,241.0,2.0726]
[1732725261781,2.478,241.11,241.0,2.0726]
[1732725261979,2.478,241.11,240.94,2.58]
[1732725261980,25.09324736,241.1,240.94,2.58]
[1732725262171,2.0724,241.04,240.94,2.58]
[1732725263081,1.2175,241.09,240.94,2.58]
[1732725264379,2.0721,241.07,241.02,2.0725]
[1732725265083,2.0721,241.07,241.03,2.0724]
[1732725265475,2.0725,241.02,240.88,19.72353404]
[1732725265675,2.58,241.06,240.92,2.0733]
[1732725265979,15.85403404,241.04,240.88,3.8695]
[1732725266177,2.0728,240.98,240.88,3.8695]
[1732725266880,2.0728,240.99,240.88,3.8695]
[1732725267283,1.2175,241.09,240.92,15.85403404]
[1732725267591,2.0721,241.07,240.92,15.85403404]
[1732725268186,1.2175,241.09,240.96,15.85403404]
[1732725269179,2.072,241.08,241.04,2.0723]
[1732725269389,1.2175,241.09,240.96,15.85403404]
[1732725269684,3.2894,241.09,240.99,2.0727]
[1732725269880,3.2894,241.09,240.96,15.85403404]
[1732725270582,3.2894,241.09,241.05,2.0722]
[1732725270889,1.2175,241.09,240.95,2.58]
[1732725271089,9.28344176,241.08,240.95,2.58]
[1732725271386,1.2175,241.09,240.95,2.58]
[1732725271587,9.28691131,241.08,240.9,2.58]
[1732725271778,9.28691131,241.07,240.9,2.58]
[1732725271978,2.0726,241.02,240.98,2.0728]
[1732725273184,2.0724,241.04,240.98,2.0728]
[1732725273379,2.58,241.06,240.9,2.58]
[1732725273380,9.29685578,241.03,240.9,2.58]
[1732725273587,2.58,241.06,240.9,2.58]
[1732725273786,2.0725,241.02,240.9,2.58]
[1732725273987,2.58,241.06,240.98,2.0728]
[1732725274187,2.0725,241.02,240.9,2.58]
[1732725274388,2.58,241.06,240.9,2.58]
[1732725274583,20.71040235,241.05,240.96,2.0729]
[1732725274787,2.0728,240.99,240.89,2.58]
[1732725275687,2.58,241.06,240.89,2.58]
[1732725275982,28.92248248,241.05,240.89,2.58]
[1732725276179,15.85403404,241.07,240.98,2.0728]
[1732725276180,28.92248248,241.04,240.98,2.0728]
[1732725276382,9.30463819,241.03,240.92,15.85403404]
[1732725276591,2.0723,241.05,240.92,15.85403404]
[1732725276790,2.0723,241.05,241.0,2.0726]
[1732725277492,11.38231217,241.04,241.0,2.0727]
[1732725277686,9.31070719,241.03,240.92,15.85403404]
[1732725277886,1.2175,241.09,240.92,15.85403404]
[1732725278086,2.0724,241.04,240.92,15.85403404]
[1732725278883,2.0721,241.07,240.92,15.85403404]
[1732725279291,9.31285347,241.06,240.92,15.85403404]
[1732725279492,9.31285347,241.05,240.92,15.85403404]
[1732725279794,9.31285347,241.04,241.03,2.0724]
[1732725280093,2.0721,241.07,241.03,2.0724]
[1732725280288,16.90376338,241.06,241.03,2.0724]
[1732725280486,9.31580562,241.05,240.78,23.18403229]
[1732725280689,19.4844589,241.04,240.88,15.85403404]
[1732725280990,9.31580562,241.03,240.89,3.8945]
[1732725281191,9.31580562,241.02,241.01,2.0726]
[1732725281393,9.31580562,241.02,240.92,15.85403404]
[1732725281691,2.58,241.08,240.92,15.85403404]
[1732725281891,28.0956053,241.07,240.92,15.85403404]
[1732725282092,28.0956053,241.06,240.92,15.85403404]
[1732725282293,28.09908148,241.05,240.92,15.85403404]
[1732725282488,16.91767862,241.04,240.95,2.073]
[1732725282688,2.0721,241.07,240.92,15.85403404]
[1732725282689,9.32520759,241.03,240.92,15.85403404]
[1732725282893,9.32520759,241.02,240.9,1.3068]
[1732725283094,9.32520759,241.01,240.98,2.0728]
[1732725283292,9.32520759,241.0,240.9,1.3068]
[1732725283495,2.58,241.08,240.9,1.3068]
[1732725283795,44.590806,241.07,240.9,1.3068]
[1732725283995,28.10869319,241.06,240.9,1.3068]
[1732725284198,2.0726,241.01,240.9,1.3068]
[1732725284395,16.92558789,241.0,240.9,1.3068]
[1732725284595,9.32957522,240.99,240.9,1.3068]
[1732725284793,9.32957522,240.98,240.97,2.0729]
[1732725285488,9.32957522,241.06,240.97,2.0729]
[1732725285688,15.85403404,241.07,240.9,1.3068]
[1732725285689,28.11072164,241.05,240.9,1.3068]
[1732725285898,28.11072164,241.04,240.89,1.3145]
[1732725286101,43.96475568,241.03,240.83,15.85403404]
[1732725286398,30.69072164,241.02,240.83,15.85403404]
[1732725286591,28.11072164,241.01,240.9,2.0735]
[1732725286788,28.11072164,241.0,240.9,2.0735]
[1732725286993,28.11072164,240.99,240.9,2.0735]
[1732725287193,2.0731,240.95,240.9,2.0735]
[1732725287393,9.32957522,240.94,240.9,2.0735]
[1732725287690,9.32957522,240.94,240.86,2.0738]
[1732725287890,9.32957522,240.94,240.83,15.85403404]
[1732725288294,9.32957522,240.93,240.86,2.0739]
[1732725288494,9.32957522,240.92,240.83,15.85403404]
[1732725288700,2.073,240.97,240.83,15.85403404]
[1732725288895,17.29778063,240.96,240.83,15.85403404]
[1732725289101,9.70152213,240.95,240.92,2.0733]
[1732725289297,9.70152213,240.95,240.83,15.85403404]
[1732725289298,9.70152213,240.94,240.83,15.85403404]
[1732725289498,9.70152213,240.93,240.86,2.0739]
[1732725289800,9.70152213,240.92,240.83,15.85403404]
[1732725290002,2.0731,240.96,240.83,15.85403404]
[1732725290200,9.70097826,240.95,240.9,2.0734]
[1732725290397,9.70097826,240.94,240.9,2.0734]
[1732725290704,9.70097826,240.93,240.83,15.85403404]
[1732725290902,9.70097826,240.92,240.91,2.0734]
[1732725291097,2.073,240.96,240.83,15.85403404]
[1732725291300,9.70097826,240.95,240.83,15.85403404]
[1732725292205,9.70097826,240.96,240.83,15.85403404]
[1732725292403,9.70097826,240.95,240.83,15.85403404]
[1732725292701,9.70097826,240.94,240.83,15.85403404]
[1732725292892,3.7892,240.99,240.83,15.85403404]
[1732725292893,9.70097826,240.93,240.83,15.85403404]
[1732725293093,3.7892,240.99,240.95,2.0731]
[1732725293298,17.302866,240.98,240.83,15.85403404]
[1732725293501,17.302866,240.97,240.83,15.85403404]
[1732725293702,9.70436981,240.96,240.94,2.0731]
[1732725293901,5.862,240.99,240.94,2.0731]
[1732725293902,9.70436981,240.95,240.94,2.0731]
[1732725294097,9.70436981,240.95,240.83,15.85403404]
[1732725294098,9.70436981,240.98,240.83,15.85403404]
[1732725294301,7.59819533,240.97,240.93,2.0733]
[1732725294499,19.62298298,240.96,240.8,9.91861317]
[1732725294805,17.30281918,240.95,240.8,9.91861317]
[1732725295002,17.30281918,240.94,240.8,9.91861317]
[1732725295301,17.30281918,240.93,240.8,9.91861317]
[1732725295502,9.70436981,240.92,240.83,9.91861317]
[1732725295710,2.58,240.93,240.83,9.91861317]
[1732725295711,9.70436981,240.91,240.83,9.91861317]
[1732725296004,9.70436981,240.9,240.89,2.0735]
[1732725296206,2.58,240.93,240.83,9.91861317]
[1732725296407,9.69963405,240.92,240.83,9.91861317]
[1732725296608,9.69963405,240.91,240.83,9.91861317]
[1732725296807,2.58,240.93,240.83,9.91861317]
[1732725297008,9.69959109,240.92,240.83,9.91861317]
[1732725297209,2.58,240.93,240.83,9.91861317]
[1732725297399,2.58,240.93,240.9,2.0735]
[1732725297808,9.69871269,240.92,240.9,2.0735]
[1732725298004,2.58,240.93,240.9,2.0735]
[1732725298207,9.69895061,240.92,240.9,2.0735]
[1732725298505,9.69895061,240.91,240.9,2.0735]
[1732725299112,9.69895061,240.92,240.9,2.0735]
[1732725299703,9.69895061,240.92,240.83,9.91861317]
[1732725301204,9.69895061,240.92,240.8,9.91861317]
[1732725301406,9.69895061,240.92,240.77,4.1493]
[1732725301601,1.2396,240.91,240.76,11.19691317]
[1732725301805,1.2396,240.91,240.76,1.2783]
[1732725301806,9.91861317,240.89,240.76,1.2783]
[1732725302108,9.91861317,240.86,240.73,9.91861317]
[1732725302408,2.074,240.84,240.8,2.0743]
[1732725302608,9.69895061,240.83,240.71,2.58]
[1732725302810,9.69895061,240.82,240.7,11.21371317]
[1732725303014,9.69895061,240.85,240.7,13.79371317]
[1732725303311,9.69895061,240.84,240.7,13.79371317]
[1732725303708,9.69895061,240.83,240.73,9.91861317]
[1732725303916,2.58,240.86,240.73,9.91861317]
[1732725304103,10.03631252,240.85,240.73,9.91861317]
[1732725304307,17.62134261,240.84,240.67,9.91861317]
[1732725304512,12.14696731,240.83,240.67,9.91861317]
[1732725304715,2.0744,240.8,240.74,2.0749]
[1732725305013,12.61631252,240.79,240.63,9.91861317]
[1732725305214,2.0747,240.76,240.63,9.91861317]
[1732725305417,1.2317,240.78,240.63,9.91861317]
[1732725305610,10.02549874,240.77,240.63,9.91861317]
[1732725305810,10.02549874,240.76,240.63,9.91861317]
[1732725306109,10.02549874,240.75,240.63,9.91861317]
[1732725306310,2.075,240.73,240.61,1.2943]
[1732725306510,10.02549874,240.72,240.61,1.2943]
[1732725306709,10.02549874,240.72,240.71,1.11802]
[1732725306910,10.02549874,240.75,240.71,1.11802]
[1732725307403,2.075,240.73,240.71,1.11802]
[1732725307616,9.91861317,240.76,240.71,1.11802]
[1732725307816,10.02019641,240.75,240.71,1.11802]
[1732725308015,10.02019641,240.74,240.71,1.11802]
[1732725308215,2.075,240.73,240.71,1.11802]
[1732725308411,9.91861317,240.76,240.71,1.11802]
[1732725308711,2.0753,240.7,240.65,2.0757]
[1732725308906,9.91861317,240.72,240.58,2.58]
[1732725308907,2.58,240.71,240.58,2.58]
[1732725309108,10.01244803,240.7,240.58,2.58]
[1732725309313,2.58,240.71,240.64,2.0757]
[1732725309314,2.0753,240.69,240.64,2.0757]
[1732725309510,2.58,240.71,240.58,2.58]
[1732725309711,10.00131311,240.7,240.69,2.0753]
[1732725309909,2.58,240.71,240.59,9.91861317]
[1732725310105,1.2317,240.78,240.62,9.91861317]
[1732725310106,11.15031317,240.78,240.62,9.91861317]
[1732725310313,2.0747,240.76,240.69,2.0753]
[1732725310608,9.91861317,240.72,240.58,2.58]
[1732725310812,2.0753,240.69,240.56,11.12031317]
[1732725311013,1.2105,240.68,240.56,11.12031317]
[1732725311411,1.2105,240.68,240.56,1.2017]
[1732725311608,3.2859,240.68,240.56,1.2017]
[1732725312109,1.2105,240.68,240.56,1.2017]
[1732725312311,1.2105,240.68,240.56,11.12031317]
[1732725312610,1.2105,240.68,240.59,9.91861317]
[1732725312826,12.49861317,240.75,240.59,9.91861317]
[1732725313007,11.1874807,240.74,240.65,2.0756]
[1732725313318,9.91861317,240.72,240.56,11.12031317]
[1732725314611,2.0752,240.71,240.56,11.12031317]
[1732725314811,9.91861317,240.72,240.56,11.12031317]
[1732725315008,2.0751,240.72,240.56,11.12031317]
[1732725315212,1.2105,240.74,240.62,9.91861317]
[1732725315408,1.2105,240.74,240.65,9.91861317]
[1732725316011,1.2105,240.74,240.73,2.075]
[1732725318217,1.2661,240.79,240.69,2.0753]
[1732725318412,9.91861317,240.73,240.41,5.79600807]
[1732725318616,12.49861317,240.73,240.56,9.91861317]
[1732725318916,12.49861317,240.73,240.57,1.247]
[1732725319121,1.249,240.72,240.57,1.247]
[1732725320112,1.249,240.72,240.59,9.91861317]
[1732725320317,1.249,240.72,240.57,1.247]
[1732725321012,18.48399526,240.77,240.6,15.90399526]
[1732725321013,2.58,240.77,240.6,15.90399526]
[1732725321219,2.58,240.77,240.61,2.58]
[1732725321519,1.2618,240.78,240.61,2.58]
[1732725321720,1.2618,240.78,240.64,15.90399526]
[1732725322018,1.2618,240.78,240.76,2.0747]
[1732725322216,1.2618,240.78,240.68,2.58]
[1732725323321,1.2618,240.78,240.76,2.0747]
[1732725323521,1.2618,240.78,240.68,2.58]
[1732725324922,1.2618,240.78,240.69,1.262]
[1732725325118,1.2618,240.78,240.77,2.0746]
[1732725325318,2.09151134,240.86,240.69,1.262]
[1732725325319,2.58,240.87,240.69,1.262]
[1732725325518,1.2454,240.85,240.69,1.262]
[1732725326016,15.90399526,240.84,240.69,1.262]
[1732725326222,15.90399526,240.8,240.69,1.262]
[1732725326822,15.90399526,240.84,240.69,1.262]
[1732725327015,9.9634565,240.83,240.69,1.262]
[1732725327221,18.48399526,240.84,240.69,1.262]
[1732725327823,20.55809526,240.84,240.69,1.262]
[1732725328317,20.55809526,240.84,240.78,2.0745]
[1732725329822,2.0742,240.83,240.78,2.0745]
[1732725331121,1.2454,240.85,240.69,1.262]
[1732725331720,3.3194,240.85,240.69,1.262]
[1732725332619,3.3194,240.85,240.79,2.0744]
[1732725332817,1.2454,240.85,240.74,2.58]
[1732725333423,1.2454,240.85,240.82,2.0742]
[1732725333626,1.2454,240.85,240.74,2.58]
[1732725334428,1.2454,240.85,240.83,2.0741]
[1732725334722,32.4,240.96,240.69,1.262]
[1732725334723,1.3299,240.98,240.81,2.58]
[1732725334926,2.073,240.96,240.9,2.0734]
[1732725335123,9.98769199,240.95,240.9,2.0734]
[1732725335428,9.98769199,240.94,240.82,2.58]
[1732725335623,2.4722,240.98,240.82,2.58]
[1732725335624,2.0729,240.97,240.86,2.0738]
[1732725335817,9.98698279,240.96,240.82,2.58]
[1732725336023,17.13469526,241.0,240.82,2.58]
[1732725336223,9.9867133,240.99,240.82,2.58]
[1732725336422,9.9867133,240.98,240.82,2.58]
[1732725336928,12.0597133,240.97,240.82,2.58]
[1732725337127,9.9867133,240.96,240.82,2.58]
[1732725337634,9.9867133,240.95,240.83,1.2716]
[1732725337929,9.9867133,240.94,240.83,1.2716]
[1732725338129,17.13469526,241.0,240.83,1.2716]
[1732725338323,12.06019843,240.99,240.83,1.2716]
[1732725338528,17.13469526,241.0,240.83,1.2716]
[1732725338529,9.98739843,240.98,240.83,1.2716]
[1732725338728,9.98739843,240.97,240.83,1.2716]
[1732725338925,9.98739843,240.96,240.92,2.0733]
[1732725339128,9.98739843,240.95,240.92,2.0733]
[1732725339330,9.98739843,240.94,240.92,2.0733]
[1732725339530,2.0728,240.99,240.92,2.0733]
[1732725339726,2.073,240.96,240.89,2.0735]
[1732725339925,9.9876307,240.98,240.87,2.58]
[1732725340132,9.9876307,240.95,240.87,2.58]
[1732725340326,17.13469526,241.0,240.91,2.0734]
[1732725340327,12.0605307,240.97,240.91,2.0734]
[1732725340526,9.9876307,240.94,240.91,2.0734]
[1732725340725,11.99441804,240.97,240.91,2.0734]
[1732725340930,9.98658492,240.96,240.91,2.0734]
[1732725341231,9.98658492,240.95,240.91,2.0734]
[1732725341430,9.98658492,240.94,240.93,2.0733]
[1732725341631,9.98658492,240.94,240.87,2.58]
[1732725341932,2.0729,240.97,240.91,2.0734]
[1732725342124,9.98558829,240.96,240.87,2.58]
[1732725342327,9.98558829,240.95,240.87,2.58]
[1732725342631,9.98558829,240.94,240.87,2.58]
[1732725342834,9.92151804,240.99,240.87,2.58]
[1732725343030,9.98534354,240.98,240.94,2.0732]
[1732725343334,9.92151804,240.99,240.94,2.0732]
[1732725343335,9.98534354,240.97,240.94,2.0732]
[1732725343533,9.98534354,240.96,240.94,2.0732]
[1732725343733,9.92151804,240.99,240.94,2.0732]
[1732725343928,9.98454361,240.98,240.87,2.58]
[1732725344126,9.92151804,240.99,240.95,2.0731]
[1732725344332,9.98255728,240.98,240.87,2.58]
[1732725344528,9.92151804,240.99,240.94,2.0732]
[1732725344733,9.9825692,240.98,240.94,2.0732]
[1732725345038,9.92151804,240.99,240.94,2.0732]
[1732725345238,9.9807947,240.98,240.94,2.0732]
[1732725345440,9.92151804,240.99,240.94,2.0732]
[1732725345834,9.98104748,240.98,240.94,2.0732]
[1732725346035,11.99431804,240.99,240.94,2.0732]
[1732725346633,12.03256932,240.99,240.81,1.2212]
[1732725346841,12.03256932,240.99,240.82,2.58]
[1732725347133,9.92151804,240.96,240.82,2.58]
[1732725347335,11.99461804,240.96,240.82,2.58]
[1732725347630,9.92151804,240.99,240.83,9.92151804]
[1732725347832,9.97787249,240.98,240.83,9.92151804]
[1732725348026,9.97787249,240.97,240.83,9.92151804]
[1732725348231,9.92151804,240.99,240.83,9.92151804]
[1732725348432,9.97488271,240.98,240.95,2.0731]
[1732725348637,9.92151804,240.99,240.88,2.58]
[1732725348930,9.97496648,240.98,240.88,2.58]
[1732725349137,9.92151804,240.99,240.94,2.0731]
[1732725349336,9.97254231,240.98,240.94,2.0731]
[1732725349537,9.92151804,240.99,240.94,2.0731]
[1732725349737,9.9725353,240.98,240.94,2.0731]
[1732725349938,9.92151804,240.99,240.94,2.0731]
[1732725350136,9.97250113,240.98,240.88,2.58]
[1732725350337,9.92151804,240.99,240.95,2.0731]
[1732725350544,9.97056179,240.98,240.95,2.0731]
[1732725350746,9.92151804,240.99,240.95,2.0731]
[1732725350935,9.97041758,240.98,240.95,2.0731]
[1732725351132,9.92151804,240.99,240.95,2.0731]
[1732725351338,9.96945503,240.98,240.95,2.0731]
[1732725351639,1.2307,241.0,240.95,2.0731]
[1732725351842,9.96936787,240.99,240.95,2.0731]
[1732725352034,3.3034,241.0,240.95,2.0731]
[1732725352236,9.96934647,240.99,240.95,2.0731]
[1732725352446,9.96934647,240.98,240.95,2.0731]
[1732725352634,3.3034,241.0,240.95,2.0731]
[1732725352841,9.96879741,240.99,240.95,2.0731]
[1732725353037,3.3034,241.0,240.91,2.0734]
[1732725353343,3.3034,241.0,240.88,2.58]
[1732725353344,9.9691612,240.99,240.88,2.58]
[1732725353540,9.9691612,240.98,240.88,2.58]
[1732725353740,3.3034,241.0,240.88,2.58]
[1732725353938,9.96899658,240.99,240.88,2.58]
[1732725354143,9.96899658,240.98,240.88,2.58]
[1732725354336,3.3034,241.0,240.94,2.0731]
[1732725354539,9.9715292,240.99,240.88,2.58]
[1732725354741,9.9715292,240.98,240.95,2.0731]
[1732725354939,3.3034,241.0,240.95,2.0731]
[1732725355140,9.97148856,240.99,240.95,2.0731]
[1732725355443,9.97148856,240.98,240.95,2.0731]
[1732725355643,3.3034,241.0,240.95,2.0731]
[1732725355845,12.04595057,240.99,240.95,2.0731]
[1732725356145,9.97315057,240.98,240.95,2.0731]
[1732725356644,9.97315057,240.97,240.95,2.0731]
[1732725356948,3.3034,241.0,240.87,2.58]
[1732725357141,9.97645926,240.99,240.87,2.58]
[1732725357343,9.97645926,240.98,240.87,2.58]
[1732725357541,9.97645926,240.97,240.87,2.58]
[1732725357849,9.92151804,240.95,240.85,0.16303]
[1732725358146,9.98146121,240.94,240.85,0.16303]
[1732725358335,2.0733,240.93,240.85,0.16303]
[1732725358538,9.98146121,240.92,240.85,0.16303]
[1732725358734,9.98146121,240.91,240.9,2.0735]
[1732725358934,9.98146121,240.96,240.85,0.16303]
[1732725359138,9.98146121,240.95,240.85,0.16303]
[1732725359343,9.98146121,240.94,240.85,0.16303]
[1732725359536,9.98146121,240.93,240.85,10.08454804]
[1732725359736,9.98146121,240.92,240.91,2.0734]
[1732725360046,9.98146121,240.97,240.85,0.16303]
[1732725360244,9.98146121,240.96,240.85,0.16303]
[1732725360447,9.98146121,240.95,240.85,0.16303]
[1732725360749,9.98146121,240.94,240.85,0.16303]
[1732725360941,9.98146121,240.93,240.85,0.16303]
[1732725361241,9.92151804,240.98,240.85,0.16303]
[1732725361242,9.98146121,240.92,240.85,0.16303]
[1732725361447,11.99441804,240.98,240.93,2.0732]
[1732725361744,10.00038968,240.97,240.93,2.0732]
[1732725362047,10.00038968,240.96,240.93,2.0733]
[1732725362242,10.00038968,240.95,240.93,2.0733]
[1732725362436,2.0729,240.98,240.93,2.0733]
[1732725362437,10.00038968,240.94,240.93,2.0733]
[1732725363346,11.15221804,241.0,240.92,2.0733]
[1732725363347,12.07338968,240.97,240.92,2.0733]
[1732725363542,19.92190772,240.97,240.85,0.16303]
[1732725363844,2.0732,240.94,240.9,2.0735]
[1732725364040,10.00038968,240.93,240.9,2.0735]
[1732725364345,10.00038968,240.92,240.9,2.0735]
[1732725364542,10.00038968,240.91,240.9,2.0735]
[1732725364847,10.00038968,240.91,240.88,2.0737]
[1732725365046,10.00038968,240.9,240.88,2.0737]
[1732725365340,10.00038968,240.89,240.88,2.0737]
[1732725365544,2.0732,240.94,240.89,2.0736]
[1732725365741,10.02343611,240.93,240.89,2.0736]
[1732725365937,10.02343611,240.92,240.89,2.0736]
[1732725366138,10.02343611,240.91,240.89,2.0736]
[1732725366342,10.02343611,240.91,240.85,0.16303]
[1732725366343,10.02343611,240.9,240.85,0.16303]
[1732725366648,10.02343611,240.89,240.85,0.16303]
[1732725366947,2.0735,240.9,240.85,0.16303]
[1732725367137,9.92151804,240.88,240.85,0.16303]
[1732725367338,10.03086377,240.87,240.85,0.16303]
[1732725367541,10.03086377,240.87,240.76,2.56]
[1732725367940,10.03086377,240.87,240.72,11.13661804]
[1732725368149,10.03086377,240.87,240.75,2.56]
[1732725368347,10.03086377,240.87,240.72,13.69661804]